[Event "Queens Festival Europe 2022"]
[Site "Tornelo"]
[Date "2022.06.19"]
[Round "3.8"]
[White "Tani, Selina"]
[Black "Andries, Leia"]
[Result "1-0"]
[ECO "B45"]
[WhiteElo "1146"]
[BlackElo "1438"]
[Annotator "NA RC"]
[PlyCount "65"]
[EventDate "2022.06.19"]
[EventType "swiss"]
[EventCountry "NET"]
[SourceTitle "playchess.com"]
[Source "ChessBase"]
[SourceQuality "1"]
[TimeControl "180+2"]

1. e4 {[%emt 0:00:02]} c5 {[%emt 0:00:05]} 2. Nf3 {[%emt 0:00:03]} Nc6 {[%emt 0:00:01]} 3. d4 {[%emt 0:00:02]} cxd4 {[%emt 0:00:00]} 4. Nxd4 {[%emt 0:00:02]} Nf6 {[%emt 0:00:04]} 5. Nc3 {[%emt 0:00:01]} e6 {[%emt 0:00:03]} 6. Be2 {[%emt 0:00:07]} Bb4 {[%emt 0:00:05]} 7. Bd2 {[%emt 0:00:03]} Bxc3 {[%emt 0:00:27]} 8. Bxc3 {[%emt 0:00:03]} Nxe4 {[%emt 0:00:01]} 9. Nxc6 {[%emt 0:00:09]} bxc6 {[%emt 0:00:03]} 10. Bxg7 {[%emt 0:00:03]} Rg8 {[%emt 0:00:07]} 11. Bd4 {[%emt 0:00:05]} Qa5+ {[%emt 0:00:15]} 12. c3 {[%emt 0:00:09]} Qg5 {[%emt 0:00:14]} 13. g3 {[%emt 0:00:05]} Qf5 {[%emt 0:00:15]} 14. Bd3 {[%emt 0:00:05]} e5 {[%emt 0:00:08]} 15. Be3 {[%emt 0:00:08]} d5 {[%emt 0:00:13]} 16. f3 {[%emt 0:00:10]} Qh3 {[%emt 0:00:31]} 17. fxe4 {[%emt 0:00:06]} Qg2 {[%emt 0:00:06]} 18. Rg1 {[%emt 0:00:15]} Qxh2 {[%emt 0:00:07]} 19. exd5 {[%emt 0:00:27]} cxd5 {[%emt 0:00:03]} 20. Bb5+ {[%emt 0:00:02]} Kf8 {[%emt 0:00:14]} 21. Bc5+ {[%emt 0:00:04]} Kg7 {[%emt 0:00:06]} 22. Qxd5 {[%emt 0:00:27]} Bh3 {[%emt 0:00:18]} 23. Qxe5+ {[%emt 0:00:07]} f6 {[%emt 0:00:06]} 24. Qe7+ {[%emt 0:00:03]} Kg6 {[%emt 0:00:07]} 25. Bd3+ {[%emt 0:00:10]} Bf5 {[%emt 0:00:01]} 26. Bxf5+ {[%emt 0:00:05]} Kxf5 {[%emt 0:00:00]} 27. Rf1+ {[%emt 0:00:02]} Kg6 {[%emt 0:00:03]} 28. Qxf6+ {[%emt 0:00:01]} Kh5 {[%emt 0:00:02]} 29. Rf5+ {[%emt 0:00:02]} Kg4 {[%emt 0:00:03]} 30. Rf4+ {[%emt 0:00:07]} Kh3 {[%emt 0:00:03]} 31. Qh4+ {[%emt 0:00:03]} Kg2 {[%emt 0:00:01]} 32. Rf2+ {[%emt 0:00:02]} Kg1 {[%emt 0:00:03]} 33. Qxh2# {[%emt 0:00:02]} 1-0

[Event "Queens Festival Europe 2022"]
[Site "Tornelo"]
[Date "2022.06.19"]
[Round "3.9"]
[White "Rahimli, Izzat"]
[Black "Shabanaj, Eglantina"]
[Result "0-1"]
[ECO "D02"]
[WhiteElo "1817"]
[BlackElo "1986"]
[Annotator "NA RC"]
[PlyCount "84"]
[EventDate "2022.06.19"]
[EventType "swiss"]
[EventCountry "NET"]
[SourceTitle "playchess.com"]
[Source "ChessBase"]
[SourceQuality "1"]
[TimeControl "180+2"]

1. d4 {[%emt 0:00:02]} d5 {[%emt 0:00:06]} 2. Nf3 {[%emt 0:00:04]} c6 {[%emt 0:00:02]} 3. e3 {[%emt 0:00:03]} e6 {[%emt 0:00:02]} 4. Bd3 {[%emt 0:00:02]} f5 {[%emt 0:00:02]} 5. b3 {[%emt 0:00:05]} Nf6 {[%emt 0:00:03]} 6. Bb2 {[%emt 0:00:01]} Bd6 {[%emt 0:00:02]} 7. O-O {[%emt 0:00:03]} O-O {[%emt 0:00:02]} 8. Ne5 {[%emt 0:00:02]} Nbd7 {[%emt 0:00:03]} 9. Nd2 {[%emt 0:00:02]} Qe8 {[%emt 0:00:04]} 10. f4 {[%emt 0:00:03]} Ne4 {[%emt 0:00:06]} 11. c4 {[%emt 0:00:08]} Ndf6 {[%emt 0:00:10]} 12. Ndf3 {[%emt 0:00:04]} Ng4 {[%emt 0:00:11]} 13. Nxg4 {[%emt 0:00:14]} fxg4 {[%emt 0:00:03]} 14. Ne5 {[%emt 0:00:02]} Bxe5 {[%emt 0:00:08]} 15. dxe5 {[%emt 0:00:05]} Qg6 {[%emt 0:00:07]} 16. Qc2 {[%emt 0:00:15]} Bd7 {[%emt 0:00:10]} 17. Bxe4 {[%emt 0:00:07]} dxe4 {[%emt 0:00:04]} 18. Rad1 {[%emt 0:00:09]} Rad8 {[%emt 0:00:04]} 19. Ba3 {[%emt 0:00:02]} Rf7 {[%emt 0:00:06]} 20. Rd6 {[%emt 0:00:06]} h5 {[%emt 0:00:10]} 21. Rfd1 {[%emt 0:00:07]} h4 {[%emt 0:00:04]} 22. R1d2 {[%emt 0:00:18]} g3 {[%emt 0:00:06]} 23. h3 {[%emt 0:00:03]} Qf5 {[%emt 0:00:06]} 24. Qd1 {[%emt 0:00:08]} g5 {[%emt 0:00:15]} 25. Rxd7 {[%emt 0:00:02]} Rdf8 {[%emt 0:00:02]} 26. Bxf8 {[%emt 0:00:07]} Rxf8 {[%emt 0:00:03]} 27. Rxb7 {[%emt 0:00:14]} gxf4 {[%emt 0:00:06]} 28. Qg4+ {[%emt 0:00:25]} Qxg4 {[%emt 0:00:05]} 29. hxg4 {[%emt 0:00:02]} f3 {[%emt 0:00:03]} 30. Rbd7 {[%emt 0:00:19]} f2+ {[%emt 0:00:16]} 31. Kf1 {[%emt 0:00:05]} h3 {[%emt 0:00:03]} 32. Rd8 {[%emt 0:00:22]} hxg2+ {[%emt 0:00:05]} 33. Kxg2 {[%emt 0:00:06]} f1=Q+ {[%emt 0:00:04]} 34. Kxg3 {[%emt 0:00:02]} Qg1+ {[%emt 0:00:17]} 35. Kh4 {[%emt 0:00:03]} Qxe3 {[%emt 0:00:04]} 36. Rxf8+ {[%emt 0:00:04]} Kxf8 {[%emt 0:00:03]} 37. Rd8+ {[%emt 0:00:02]} Ke7 {[%emt 0:00:03]} 38. Ra8 {[%emt 0:00:03]} Qf2+ {[%emt 0:00:04]} 39. Kh5 {[%emt 0:00:02]} Qh2+ {[%emt 0:00:04]} 40. Kg6 {[%emt 0:00:03]} Qxe5 {[%emt 0:00:04]} 41. Rxa7+ {[%emt 0:00:04]} Kd6 {[%emt 0:00:03]} 42. Ra8 {[%emt 0:00:04]} e3 {[%emt 0:00:08]} 0-1

[Event "Queens Festival Europe 2022"]
[Site "Tornelo"]
[Date "2022.06.19"]
[Round "3.9"]
[White "Patel, Diah Dipal"]
[Black "Pyun, Lindsay"]
[Result "0-1"]
[ECO "C47"]
[WhiteElo "1313"]
[BlackElo "1526"]
[Annotator "NA RC"]
[PlyCount "44"]
[EventDate "2022.06.19"]
[EventType "swiss"]
[EventCountry "NET"]
[SourceTitle "playchess.com"]
[Source "ChessBase"]
[SourceQuality "1"]
[TimeControl "180+2"]

1. e4 {[%emt 0:00:02]} e5 {[%emt 0:00:06]} 2. Nf3 {[%emt 0:00:04]} Nc6 {[%emt 0:00:01]} 3. Nc3 {[%emt 0:00:02]} Nf6 {[%emt 0:00:03]} 4. d4 {[%emt 0:00:02]} exd4 {[%emt 0:00:04]} 5. Nxd4 {[%emt 0:00:01]} Bc5 {[%emt 0:00:06]} 6. Nxc6 {[%emt 0:00:06]} dxc6 {[%emt 0:00:04]} 7. Bd2 {[%emt 0:00:02]} Be6 {[%emt 0:00:05]} 8. Bd3 {[%emt 0:00:03]} h6 {[%emt 0:00:08]} 9. Qe2 {[%emt 0:00:03]} Qe7 {[%emt 0:00:05]} 10. e5 {[%emt 0:00:27]} Nd5 {[%emt 0:00:03]} 11. Nxd5 {[%emt 0:00:06]} Bxd5 {[%emt 0:00:08]} 12. Be4 {[%emt 0:00:23]} Qxe5 {[%emt 0:00:12]} 13. f3 {[%emt 0:00:07]} Bxe4 {[%emt 0:00:04]} 14. O-O-O {[%emt 0:00:05]} O-O-O {[%emt 0:00:12]} 15. fxe4 {[%emt 0:00:13]} Rhe8 {[%emt 0:00:04]} 16. Rhe1 {[%emt 0:00:09]} f6 {[%emt 0:00:06]} 17. Qg4+ {[%emt 0:00:03]} Kb8 {[%emt 0:00:15]} 18. Bf4 {[%emt 0:00:10]} Qe7 {[%emt 0:00:11]} 19. Rxd8+ {[%emt 0:00:07]} Rxd8 {[%emt 0:00:02]} 20. e5 {[%emt 0:00:07]} a6 {[%emt 0:00:07]} 21. exf6 {[%emt 0:00:02]} Qxe1+ {[%emt 0:00:03]} 22. Qd1 {[%emt 0:00:08]} Qxd1# {[%emt 0:00:01]} 0-1

[Event "Queens Festival Europe 2022"]
[Site "Tornelo"]
[Date "2022.06.19"]
[Round "3.10"]
[White "Strnadova, Monika"]
[Black "Farzaliyeva, Shams"]
[Result "1-0"]
[ECO "B06"]
[WhiteElo "1518"]
[BlackElo "1219"]
[Annotator "NA RC"]
[PlyCount "73"]
[EventDate "2022.06.19"]
[EventType "swiss"]
[EventCountry "NET"]
[SourceTitle "playchess.com"]
[Source "ChessBase"]
[SourceQuality "1"]
[TimeControl "180+2"]

1. e4 {[%emt 0:00:05]} g6 {[%emt 0:00:36]} 2. Nf3 {[%emt 0:00:03]} Bg7 {[%emt 0:00:06]} 3. d4 {[%emt 0:00:01]} d6 {[%emt 0:00:08]} 4. Be2 {[%emt 0:00:03]} Nc6 {[%emt 0:00:25]} 5. Be3 {[%emt 0:00:03]} Bg4 {[%emt 0:00:02]} 6. O-O {[%emt 0:00:03]} Nf6 {[%emt 0:00:03]} 7. Nbd2 {[%emt 0:00:05]} e5 {[%emt 0:00:02]} 8. d5 {[%emt 0:00:04]} Ne7 {[%emt 0:00:02]} 9. c4 {[%emt 0:00:04]} O-O {[%emt 0:00:04]} 10. Rc1 {[%emt 0:00:03]} Ne8 {[%emt 0:00:01]} 11. Ng5 {[%emt 0:00:09]} Bxe2 {[%emt 0:00:04]} 12. Qxe2 {[%emt 0:00:03]} f5 {[%emt 0:00:01]} 13. Ne6 {[%emt 0:00:03]} Qd7 {[%emt 0:00:01]} 14. Nxf8 {[%emt 0:00:02]} Bxf8 {[%emt 0:00:02]} 15. c5 {[%emt 0:00:14]} f4 {[%emt 0:00:03]} 16. c6 {[%emt 0:00:08]} bxc6 {[%emt 0:00:02]} 17. dxc6 {[%emt 0:00:02]} Qc8 {[%emt 0:00:26]} 18. Bxf4 {[%emt 0:00:09]} exf4 {[%emt 0:00:03]} 19. Qc4+ {[%emt 0:00:01]} Kh8 {[%emt 0:00:03]} 20. Qf7 {[%emt 0:00:08]} Ng8 {[%emt 0:00:07]} 21. Qxf8 {[%emt 0:00:04]} Qg4 {[%emt 0:00:06]} 22. h3 {[%emt 0:00:14]} Qg5 {[%emt 0:00:03]} 23. Nf3 {[%emt 0:00:04]} Qb5 {[%emt 0:00:06]} 24. Qxf4 {[%emt 0:00:06]} Nef6 {[%emt 0:00:06]} 25. Ng5 {[%emt 0:00:06]} Rf8 {[%emt 0:00:02]} 26. Ne6 {[%emt 0:00:03]} Rf7 {[%emt 0:00:01]} 27. b3 {[%emt 0:00:11]} Re7 {[%emt 0:00:13]} 28. Nd4 {[%emt 0:00:09]} Qd3 {[%emt 0:00:02]} 29. Rfd1 {[%emt 0:00:17]} Qa6 {[%emt 0:00:04]} 30. f3 {[%emt 0:00:06]} Qxa2 {[%emt 0:00:04]} 31. Qd2 {[%emt 0:00:15]} Qa6 {[%emt 0:00:08]} 32. Ra1 {[%emt 0:00:08]} Qb6 {[%emt 0:00:04]} 33. Qa5 {[%emt 0:00:07]} Nh6 {[%emt 0:00:06]} 34. Qxa7 {[%emt 0:00:03]} Nf7 {[%emt 0:00:03]} 35. Qxb6 {[%emt 0:00:11]} cxb6 {[%emt 0:00:01]} 36. Ra8+ {[%emt 0:00:03]} Kg7 {[%emt 0:00:03]} 37. c7 {[%emt 0:00:01]} 1-0

[Event "Queens Festival Europe 2022"]
[Site "Tornelo"]
[Date "2022.06.19"]
[Round "3.11"]
[White "Sainbayar, Anuurai"]
[Black "Ostafiev, Cristina"]
[Result "0-1"]
[ECO "A00"]
[WhiteElo "1512"]
[BlackElo "1173"]
[Annotator "NA RC"]
[PlyCount "44"]
[EventDate "2022.06.19"]
[EventType "swiss"]
[EventCountry "NET"]
[SourceTitle "playchess.com"]
[Source "ChessBase"]
[SourceQuality "1"]
[TimeControl "180+2"]

1. b4 {[%emt 0:00:02]} e5 {[%emt 0:00:09]} 2. Bb2 {[%emt 0:00:02]} Bxb4 {[%emt 0:00:24]} 3. Bxe5 {[%emt 0:00:04]} Qg5 {[%emt 0:00:17]} 4. Bb2 {[%emt 0:00:16]} Nc6 {[%emt 0:00:14]} 5. Nf3 {[%emt 0:00:05]} Qg6 {[%emt 0:00:10]} 6. e3 {[%emt 0:00:10]} d5 {[%emt 0:00:06]} 7. Nh4 {[%emt 0:00:18]} Qh6 {[%emt 0:00:17]} 8. Nf3 {[%emt 0:00:13]} Bg4 {[%emt 0:00:04]} 9. Be2 {[%emt 0:00:09]} O-O-O {[%emt 0:00:04]} 10. a3 {[%emt 0:00:30]} Bd6 {[%emt 0:00:16]} 11. Nd4 {[%emt 0:00:10]} Bxe2 {[%emt 0:00:09]} 12. Qxe2 {[%emt 0:00:05]} Nxd4 {[%emt 0:00:10]} 13. Bxd4 {[%emt 0:00:02]} Nf6 {[%emt 0:00:26]} 14. h3 {[%emt 0:00:07]} Ne4 {[%emt 0:00:14]} 15. O-O {[%emt 0:00:10]} g5 {[%emt 0:00:15]} 16. Qg4+ {[%emt 0:00:10]} Kb8 {[%emt 0:00:05]} 17. d3 {[%emt 0:00:07]} Nf6 {[%emt 0:00:05]} 18. Qe2 {[%emt 0:00:06]} g4 {[%emt 0:00:02]} 19. Bxf6 {[%emt 0:00:05]} Qxf6 {[%emt 0:00:02]} 20. Qxg4 {[%emt 0:00:03]} Rhg8 {[%emt 0:00:02]} 21. Qe2 {[%emt 0:00:05]} Qg6 {[%emt 0:00:02]} 22. Nd2 {[%emt 0:00:04]} Qxg2# {[%emt 0:00:03]} 0-1

[Event "Queens Festival Europe 2022"]
[Site "Tornelo"]
[Date "2022.06.19"]
[Round "4.1"]
[White "Machlik, Monika"]
[Black "Ibrahimova, Sabina"]
[Result "1-0"]
[ECO "E76"]
[WhiteElo "2134"]
[BlackElo "2146"]
[Annotator "NA RC"]
[PlyCount "49"]
[EventDate "2022.06.19"]
[EventType "swiss"]
[EventCountry "NET"]
[SourceTitle "playchess.com"]
[Source "ChessBase"]
[SourceQuality "1"]
[TimeControl "180+2"]

1. d4 {[%emt 0:00:02]} Nf6 {[%emt 0:00:04]} 2. c4 {[%emt 0:00:03]} g6 {[%emt 0:00:02]} 3. Nc3 {[%emt 0:00:02]} Bg7 {[%emt 0:00:02]} 4. e4 {[%emt 0:00:02]} d6 {[%emt 0:00:01]} 5. f4 {[%emt 0:00:01]} O-O {[%emt 0:00:02]} 6. Nf3 {[%emt 0:00:02]} c5 {[%emt 0:00:11]} 7. d5 {[%emt 0:00:02]} e6 {[%emt 0:00:03]} 8. dxe6 {[%emt 0:00:02]} Bxe6 {[%emt 0:00:14]} 9. Bd3 {[%emt 0:00:02]} Nc6 {[%emt 0:00:06]} 10. f5 {[%emt 0:00:02]} Bc8 {[%emt 0:00:16]} 11. O-O {[%emt 0:00:02]} Ng4 {[%emt 0:00:14]} 12. Kh1 {[%emt 0:00:54]} Nge5 {[%emt 0:00:18]} 13. Bg5 {[%emt 0:00:04]} f6 {[%emt 0:00:11]} 14. Be3 {[%emt 0:00:10]} a6 {[%emt 0:00:14]} 15. Nd5 {[%emt 0:00:14]} Bd7 {[%emt 0:00:15]} 16. fxg6 {[%emt 0:00:09]} hxg6 {[%emt 0:00:03]} 17. Qd2 {[%emt 0:00:03]} b5 {[%emt 0:00:14]} 18. b3 {[%emt 0:00:39]} Rb8 {[%emt 0:00:08]} 19. Rac1 {[%emt 0:00:06]} Be6 {[%emt 0:00:50]} 20. Bb1 {[%emt 0:00:02]} Qd7 {[%emt 0:00:07]} 21. Bh6 {[%emt 0:00:08]} Bxh6 {[%emt 0:00:04]} 22. Qxh6 {[%emt 0:00:01]} Qg7 {[%emt 0:00:02]} 23. Qd2 {[%emt 0:00:12]} bxc4 {[%emt 0:00:04]} 24. bxc4 {[%emt 0:00:03]} Qh7 {[%emt 0:00:02]} 25. Nxe5 {[%emt 0:00:05]} 1-0

[Event "Queens Festival Europe 2022"]
[Site "Tornelo"]
[Date "2022.06.19"]
[Round "4.1"]
[White "Vujcic, Milena"]
[Black "Grigoryan, Meri"]
[Result "1-0"]
[ECO "C63"]
[WhiteElo "1987"]
[BlackElo "1993"]
[Annotator "NA RC"]
[PlyCount "63"]
[EventDate "2022.06.19"]
[EventType "swiss"]
[EventCountry "NET"]
[SourceTitle "playchess.com"]
[Source "ChessBase"]
[SourceQuality "1"]
[TimeControl "180+2"]

1. e4 {[%emt 0:00:02]} e5 {[%emt 0:00:06]} 2. Nf3 {[%emt 0:00:02]} Nc6 {[%emt 0:00:03]} 3. Bb5 {[%emt 0:00:02]} f5 {[%emt 0:00:02]} 4. Nc3 {[%emt 0:00:02]} Nf6 {[%emt 0:00:03]} 5. exf5 {[%emt 0:00:01]} d6 {[%emt 0:00:06]} 6. O-O {[%emt 0:00:07]} Bxf5 {[%emt 0:00:01]} 7. d4 {[%emt 0:00:03]} e4 {[%emt 0:00:14]} 8. Re1 {[%emt 0:00:22]} d5 {[%emt 0:00:09]} 9. Ne5 {[%emt 0:00:04]} Bd7 {[%emt 0:00:05]} 10. Bg5 {[%emt 0:01:10]} Qe7 {[%emt 0:00:37]} 11. Nxd5 {[%emt 0:00:05]} Qd6 {[%emt 0:00:17]} 12. Nxf6+ {[%emt 0:00:29]} gxf6 {[%emt 0:00:04]} 13. Qh5+ {[%emt 0:00:01]} Ke7 {[%emt 0:00:30]} 14. Qf7+ {[%emt 0:00:04]} Kd8 {[%emt 0:00:02]} 15. Bxf6+ {[%emt 0:00:01]} Kc8 {[%emt 0:00:01]} 16. Bxh8 {[%emt 0:00:08]} Be6 {[%emt 0:00:20]} 17. Qe8+ {[%emt 0:00:16]} Nd8 {[%emt 0:00:04]} 18. Bc4 {[%emt 0:00:06]} Bf5 {[%emt 0:00:13]} 19. Qh5 {[%emt 0:00:08]} Bg6 {[%emt 0:00:05]} 20. Nxg6 {[%emt 0:00:02]} hxg6 {[%emt 0:00:00]} 21. Qg4+ {[%emt 0:00:03]} Kb8 {[%emt 0:00:02]} 22. Be5 {[%emt 0:00:01]} Qc6 {[%emt 0:00:07]} 23. Bb3 {[%emt 0:00:03]} a5 {[%emt 0:00:04]} 24. d5 {[%emt 0:00:01]} Qb6 {[%emt 0:00:07]} 25. Rxe4 {[%emt 0:00:02]} Ka7 {[%emt 0:00:06]} 26. Bd4 {[%emt 0:00:02]} Bc5 {[%emt 0:00:01]} 27. Bxc5 {[%emt 0:00:02]} Qxc5 {[%emt 0:00:01]} 28. Rc4 {[%emt 0:00:01]} Qd6 {[%emt 0:00:08]} 29. Qg3 {[%emt 0:00:02]} Qxd5 {[%emt 0:00:09]} 30. Qe3+ {[%emt 0:00:04]} Kb8 {[%emt 0:00:04]} 31. Rxc7 {[%emt 0:00:03]} Nc6 {[%emt 0:00:01]} 32. Bxd5 {[%emt 0:00:02]} 1-0

[Event "Queens Festival Europe 2022"]
[Site "Tornelo"]
[Date "2022.06.19"]
[Round "4.1"]
[White "Khalilova, Khadija"]
[Black "Lampard, Alice"]
[Result "1-0"]
[ECO "B76"]
[WhiteElo "1777"]
[BlackElo "1756"]
[Annotator "NA RC"]
[PlyCount "99"]
[EventDate "2022.06.19"]
[EventType "swiss"]
[EventCountry "NET"]
[SourceTitle "playchess.com"]
[Source "ChessBase"]
[SourceQuality "1"]
[TimeControl "180+2"]

1. e4 {[%emt 0:00:02]} c5 {[%emt 0:00:05]} 2. Nf3 {[%emt 0:00:03]} Nc6 {[%emt 0:00:03]} 3. d4 {[%emt 0:00:02]} cxd4 {[%emt 0:00:01]} 4. Nxd4 {[%emt 0:00:02]} g6 {[%emt 0:00:02]} 5. Nc3 {[%emt 0:00:03]} Bg7 {[%emt 0:00:02]} 6. Be3 {[%emt 0:00:01]} Nf6 {[%emt 0:00:01]} 7. Be2 {[%emt 0:00:03]} O-O {[%emt 0:00:02]} 8. Qd2 {[%emt 0:00:02]} d6 {[%emt 0:00:03]} 9. f3 {[%emt 0:00:02]} Bd7 {[%emt 0:00:02]} 10. g4 {[%emt 0:00:03]} a6 {[%emt 0:00:13]} 11. h4 {[%emt 0:00:02]} h5 {[%emt 0:00:07]} 12. g5 {[%emt 0:00:09]} Ne8 {[%emt 0:00:10]} 13. f4 {[%emt 0:00:02]} Nxd4 {[%emt 0:00:06]} 14. Bxd4 {[%emt 0:00:03]} b5 {[%emt 0:00:17]} 15. Rf1 {[%emt 0:00:09]} Bh3 {[%emt 0:00:13]} 16. Rf2 {[%emt 0:00:03]} Nc7 {[%emt 0:00:20]} 17. Bxg7 {[%emt 0:00:06]} Kxg7 {[%emt 0:00:01]} 18. f5 {[%emt 0:00:01]} Qd7 {[%emt 0:00:46]} 19. f6+ {[%emt 0:00:18]} Kg8 {[%emt 0:00:13]} 20. O-O-O {[%emt 0:00:03]} b4 {[%emt 0:00:15]} 21. Nd5 {[%emt 0:00:12]} Nxd5 {[%emt 0:00:01]} 22. exd5 {[%emt 0:00:15]} a5 {[%emt 0:00:12]} 23. Qe3 {[%emt 0:00:09]} Rac8 {[%emt 0:00:14]} 24. Kb1 {[%emt 0:00:40]} Bf5 {[%emt 0:00:04]} 25. Bd3 {[%emt 0:00:05]} Bxd3 {[%emt 0:00:02]} 26. Rxd3 {[%emt 0:00:06]} Rc4 {[%emt 0:00:07]} 27. b3 {[%emt 0:00:23]} Rxh4 {[%emt 0:00:02]} 28. Re2 {[%emt 0:00:10]} Re8 {[%emt 0:00:02]} 29. fxe7 {[%emt 0:00:04]} Rg4 {[%emt 0:00:03]} 30. Rd1 {[%emt 0:00:13]} Qf5 {[%emt 0:00:01]} 31. Qb6 {[%emt 0:00:16]} Qxg5 {[%emt 0:00:05]} 32. Qxd6 {[%emt 0:00:04]} Rg1 {[%emt 0:00:01]} 33. Rxg1 {[%emt 0:00:05]} Qxg1+ {[%emt 0:00:00]} 34. Kb2 {[%emt 0:00:03]} Qg5 {[%emt 0:00:01]} 35. Qe5 {[%emt 0:00:01]} Qxe5+ {[%emt 0:00:01]} 36. Rxe5 {[%emt 0:00:02]} f6 {[%emt 0:00:01]} 37. Re3 {[%emt 0:00:02]} Kf7 {[%emt 0:00:01]} 38. d6 {[%emt 0:00:02]} g5 {[%emt 0:00:02]} 39. Kc1 {[%emt 0:00:01]} f5 {[%emt 0:00:02]} 40. Kd1 {[%emt 0:00:02]} f4 {[%emt 0:00:01]} 41. Re4 {[%emt 0:00:02]} Kf6 {[%emt 0:00:01]} 42. Ke2 {[%emt 0:00:02]} Kf5 {[%emt 0:00:03]} 43. d7 {[%emt 0:00:02]} Kxe4 {[%emt 0:00:05]} 44. dxe8=Q {[%emt 0:00:03]} f3+ {[%emt 0:00:01]} 45. Kf2 {[%emt 0:00:02]} g4 {[%emt 0:00:01]} 46. Qxh5 {[%emt 0:00:02]} Kf4 {[%emt 0:00:01]} 47. e8=Q {[%emt 0:00:04]} g3+ {[%emt 0:00:01]} 48. Kf1 {[%emt 0:00:03]} g2+ {[%emt 0:00:01]} 49. Kf2 {[%emt 0:00:01]} a4 {[%emt 0:00:03]} 50. Qee5# {[%emt 0:00:03]} 1-0

[Event "Queens Festival Europe 2022"]
[Site "Tornelo"]
[Date "2022.06.19"]
[Round "4.1"]
[White "Trivella, Maria"]
[Black "Aydogan, Arya"]
[Result "0-1"]
[ECO "D31"]
[WhiteElo "1269"]
[BlackElo "1409"]
[Annotator "NA RC"]
[PlyCount "86"]
[EventDate "2022.06.19"]
[EventType "swiss"]
[EventCountry "NET"]
[SourceTitle "playchess.com"]
[Source "ChessBase"]
[SourceQuality "1"]
[TimeControl "180+2"]

1. d4 {[%emt 0:00:02]} d5 {[%emt 0:00:04]} 2. c4 {[%emt 0:00:02]} e6 {[%emt 0:00:01]} 3. Nc3 {[%emt 0:00:01]} a6 {[%emt 0:00:01]} 4. Nf3 {[%emt 0:00:01]} dxc4 {[%emt 0:00:02]} 5. e4 {[%emt 0:00:03]} b5 {[%emt 0:00:02]} 6. a4 {[%emt 0:00:02]} b4 {[%emt 0:00:01]} 7. Ne2 {[%emt 0:00:06]} Bb7 {[%emt 0:00:07]} 8. Ng3 {[%emt 0:00:03]} c5 {[%emt 0:00:02]} 9. Bxc4 {[%emt 0:00:08]} Nc6 {[%emt 0:00:06]} 10. d5 {[%emt 0:00:03]} Na5 {[%emt 0:00:10]} 11. b3 {[%emt 0:00:14]} exd5 {[%emt 0:00:13]} 12. exd5 {[%emt 0:00:10]} Nxc4 {[%emt 0:00:04]} 13. Qe2+ {[%emt 0:00:09]} Qe7 {[%emt 0:00:08]} 14. bxc4 {[%emt 0:00:07]} Qxe2+ {[%emt 0:00:03]} 15. Nxe2 {[%emt 0:00:00]} Bd6 {[%emt 0:00:06]} 16. Bf4 {[%emt 0:00:08]} Kd7 {[%emt 0:00:10]} 17. Kd2 {[%emt 0:00:12]} Ne7 {[%emt 0:00:04]} 18. g4 {[%emt 0:00:04]} Ng6 {[%emt 0:00:05]} 19. Bxd6 {[%emt 0:00:03]} Kxd6 {[%emt 0:00:02]} 20. h4 {[%emt 0:00:07]} f6 {[%emt 0:00:08]} 21. h5 {[%emt 0:00:07]} Ne5 {[%emt 0:00:01]} 22. Nxe5 {[%emt 0:00:09]} fxe5 {[%emt 0:00:02]} 23. Rhf1 {[%emt 0:00:06]} g6 {[%emt 0:00:04]} 24. h6 {[%emt 0:00:03]} Rhf8 {[%emt 0:00:02]} 25. Ng3 {[%emt 0:00:04]} Rf4 {[%emt 0:00:02]} 26. Ke3 {[%emt 0:00:09]} Rxc4 {[%emt 0:00:19]} 27. Ne4+ {[%emt 0:00:03]} Kxd5 {[%emt 0:00:02]} 28. Rfd1+ {[%emt 0:00:03]} Rd4 {[%emt 0:00:01]} 29. Nf6+ {[%emt 0:00:02]} Ke6 {[%emt 0:00:03]} 30. Nxh7 {[%emt 0:00:08]} Rh8 {[%emt 0:00:08]} 31. Ng5+ {[%emt 0:00:06]} Kf6 {[%emt 0:00:01]} 32. Nf3 {[%emt 0:00:11]} Bxf3 {[%emt 0:00:13]} 33. Kxf3 {[%emt 0:00:11]} Rxh6 {[%emt 0:00:06]} 34. Rac1 {[%emt 0:00:08]} Rh3+ {[%emt 0:00:07]} 35. Kg2 {[%emt 0:00:02]} Rc3 {[%emt 0:00:02]} 36. f3 {[%emt 0:00:10]} Rxc1 {[%emt 0:00:18]} 37. Rxc1 {[%emt 0:00:01]} c4 {[%emt 0:00:01]} 38. Kf2 {[%emt 0:00:03]} a5 {[%emt 0:00:06]} 39. Ke2 {[%emt 0:00:01]} c3 {[%emt 0:00:02]} 40. Rc2 {[%emt 0:00:08]} Rd2+ {[%emt 0:00:12]} 41. Rxd2 {[%emt 0:00:03]} cxd2 {[%emt 0:00:02]} 42. Kxd2 {[%emt 0:00:00]} Kg5 {[%emt 0:00:02]} 43. Kd3 {[%emt 0:00:03]} Kf4 {[%emt 0:00:02]} 0-1